[Event "January 9 Early 2024"]
[Site "https://www.chess.com"]
[Date "2024.01.11"]
[Round "7"]
[White "Alekseenko, Kirill"]
[Black "Kosteniuk, Alexandra"]
[Result "1-0"]
[Board "251"]
[TimeControl "180+1"]
[WhiteFideId "4135539"]
[BlackFideId "4128125"]
[WhiteElo "2929"]
[BlackElo "2756"]
[WhiteTeam "AUT"]
[BlackTeam "SUI"]
[WhiteClock "0:00:04"]
[BlackClock "0:00:03"]

1. e4 {[%clk 0:03:00]}  e5 {[%clk 0:02:59]} 2. Nf3 {[%clk 0:03:00]}  Nf6 {[%clk 0:02:59]} 3. Nxe5 {[%clk 0:02:55]}  d6 {[%clk 0:02:59]} 4. Nf3 {[%clk 0:02:55]}  Nxe4 {[%clk 0:03:00]} 5. Nc3 {[%clk 0:02:56]}  Nxc3 {[%clk 0:03:00]} 6. dxc3 {[%clk 0:02:57]}  Be7 {[%clk 0:02:59]} 7. Bd3 {[%clk 0:02:58]}  Nd7 {[%clk 0:02:59]} 8. Be3 {[%clk 0:02:58]}  Nf6 {[%clk 0:02:58]} 9. h3 {[%clk 0:02:51]}  c5 {[%clk 0:02:49]} 10. Qe2 {[%clk 0:02:45]}  Bd7 {[%clk 0:02:43]} 11. c4 {[%clk 0:02:36]}  O-O {[%clk 0:02:40]} 12. O-O {[%clk 0:02:33]}  Bc6 {[%clk 0:02:37]} 13. Rad1 {[%clk 0:02:32]}  Re8 {[%clk 0:02:32]} 14. Rfe1 {[%clk 0:02:30]}  Bf8 {[%clk 0:02:22]} 15. Nh2 {[%clk 0:02:11]}  Qb6 {[%clk 0:02:05]} 16. b3 {[%clk 0:02:10]}  Ne4 {[%clk 0:01:58]} 17. Bxe4 {[%clk 0:01:22]}  Rxe4 {[%clk 0:01:54]} 18. Nf1 {[%clk 0:01:22]}  Rae8 {[%clk 0:01:53]} 19. Ng3 {[%clk 0:01:21]}  R4e6 {[%clk 0:01:53]} 20. Qd2 {[%clk 0:01:19]}  g6 {[%clk 0:01:47]} 21. a4 {[%clk 0:01:18]}  h5 {[%clk 0:01:40]} 22. Ne2 {[%clk 0:01:12]}  Re4 {[%clk 0:01:14]} 23. Nc3 {[%clk 0:01:11]}  R4e6 {[%clk 0:01:11]} 24. Nd5 {[%clk 0:01:10]}  Bxd5 {[%clk 0:01:02]} 25. Qxd5 {[%clk 0:01:09]}  Bg7 {[%clk 0:00:57]} 26. Bd2 {[%clk 0:00:59]}  Bd4 {[%clk 0:00:34]} 27. Rxe6 {[%clk 0:00:51]}  Rxe6 {[%clk 0:00:34]} 28. Re1 {[%clk 0:00:45]}  Rxe1+ {[%clk 0:00:32]} 29. Bxe1 {[%clk 0:00:46]}  Qc7 {[%clk 0:00:27]} 30. Kf1 {[%clk 0:00:39]}  Qe7 {[%clk 0:00:26]} 31. Bd2 {[%clk 0:00:37]}  Kg7 {[%clk 0:00:22]} 32. Qf3 {[%clk 0:00:24]}  b6 {[%clk 0:00:18]} 33. g4 {[%clk 0:00:22]}  hxg4 {[%clk 0:00:17]} 34. hxg4 {[%clk 0:00:23]}  Qe6 {[%clk 0:00:16]} 35. Kg2 {[%clk 0:00:22]}  Bf6 {[%clk 0:00:11]} 36. Bf4 {[%clk 0:00:20]}  Bd4 {[%clk 0:00:11]} 37. Kf1 {[%clk 0:00:19]}  Bf6 {[%clk 0:00:11]} 38. Be3 {[%clk 0:00:18]}  Be5 {[%clk 0:00:11]} 39. Ke2 {[%clk 0:00:16]}  Bd4 {[%clk 0:00:11]} 40. Kd3 {[%clk 0:00:16]}  Bxe3 {[%clk 0:00:11]} 41. fxe3 {[%clk 0:00:17]}  g5 {[%clk 0:00:08]} 42. Ke2 {[%clk 0:00:05]}  Qg6 {[%clk 0:00:07]} 43. Kd2 {[%clk 0:00:04]}  Qe6 {[%clk 0:00:07]} 44. Ke1 {[%clk 0:00:03]}  Qe5 {[%clk 0:00:07]} 45. Kd2 {[%clk 0:00:03]}  Qe6 {[%clk 0:00:07]} 46. Qg3 {[%clk 0:00:02]}  d5 {[%clk 0:00:06]} 47. cxd5 {[%clk 0:00:02]}  Qxd5+ {[%clk 0:00:06]} 48. Kc1 {[%clk 0:00:03]}  Qe4 {[%clk 0:00:06]} 49. Kb2 {[%clk 0:00:03]}  a6 {[%clk 0:00:05]} 50. Qd6 {[%clk 0:00:02]}  Qxe3 {[%clk 0:00:05]} 51. Qxb6 {[%clk 0:00:02]}  Qd4+ {[%clk 0:00:06]} 52. Kb1 {[%clk 0:00:03]}  Qd1+ {[%clk 0:00:05]} 53. Kb2 {[%clk 0:00:03]}  Qd4+ {[%clk 0:00:06]} 54. Ka2 {[%clk 0:00:03]}  Qc3 {[%clk 0:00:06]} 55. Kb1 {[%clk 0:00:03]}  Qe1+ {[%clk 0:00:05]} 56. Kb2 {[%clk 0:00:04]}  Qe5+ {[%clk 0:00:06]} 57. c3 {[%clk 0:00:02]}  Qe2+ {[%clk 0:00:06]} 58. Ka3 {[%clk 0:00:03]}  Qxg4 {[%clk 0:00:05]} 59. Qxc5 {[%clk 0:00:03]}  Qf4 {[%clk 0:00:05]} 60. b4 {[%clk 0:00:03]}  g4 {[%clk 0:00:05]} 61. b5 {[%clk 0:00:03]}  axb5 {[%clk 0:00:03]} 62. axb5 {[%clk 0:00:04]}  g3 {[%clk 0:00:04]} 63. b6 {[%clk 0:00:05]}  g2 {[%clk 0:00:04]} 64. b7 {[%clk 0:00:02]}  Qb8 {[%clk 0:00:04]} 65. Qg5+ {[%clk 0:00:02]}  Kf8 {[%clk 0:00:04]} 66. Qxg2 {[%clk 0:00:03]}  Qa7+ {[%clk 0:00:05]} 67. Kb2 {[%clk 0:00:03]}  Qb6+ {[%clk 0:00:05]} 68. Kc2 {[%clk 0:00:04]}  Qb5 {[%clk 0:00:04]} 69. Qe4 {[%clk 0:00:04]}  Qb6 {[%clk 0:00:03]} 70. Qb4+ {[%clk 0:00:04]} 1-0

[Event "January 9 Early 2024"]
[Site "https://www.chess.com"]
[Date "2024.01.11"]
[Round "7"]
[White "Llari, Marc"]
[Black "Kanyamarala, Tarun"]
[Result "1-0"]
[Board "252"]
[TimeControl "180+1"]
[WhiteFideId "651044269"]
[BlackFideId "45004714"]
[WhiteElo "2340"]
[BlackElo "2506"]
[WhiteTeam "FRA"]
[BlackTeam "IRL"]
[WhiteClock "0:00:16"]
[BlackClock "0:00:01"]

1. d4 {[%clk 0:02:59]}  Nf6 {[%clk 0:02:58]} 2. Nf3 {[%clk 0:02:54]}  b6 {[%clk 0:02:58]} 3. c4 {[%clk 0:02:52]}  Bb7 {[%clk 0:02:58]} 4. Nc3 {[%clk 0:02:52]}  e6 {[%clk 0:02:49]} 5. Bd2 {[%clk 0:02:47]}  Be7 {[%clk 0:02:44]} 6. g3 {[%clk 0:02:46]}  Ne4 {[%clk 0:02:43]} 7. Nxe4 {[%clk 0:02:45]}  Bxe4 {[%clk 0:02:43]} 8. Bg2 {[%clk 0:02:46]}  O-O {[%clk 0:02:43]} 9. O-O {[%clk 0:02:46]}  c5 {[%clk 0:02:40]} 10. Bc3 {[%clk 0:02:45]}  d6 {[%clk 0:02:36]} 11. b3 {[%clk 0:02:41]}  Nc6 {[%clk 0:02:34]} 12. Nd2 {[%clk 0:02:41]}  Bxg2 {[%clk 0:02:33]} 13. Kxg2 {[%clk 0:02:41]}  cxd4 {[%clk 0:02:33]} 14. Bb2 {[%clk 0:02:41]}  d5 {[%clk 0:02:32]} 15. Nf3 {[%clk 0:02:38]}  e5 {[%clk 0:02:24]} 16. e3 {[%clk 0:02:35]}  dxc4 {[%clk 0:02:16]} 17. exd4 {[%clk 0:02:34]}  exd4 {[%clk 0:02:11]} 18. Nxd4 {[%clk 0:02:32]}  Bf6 {[%clk 0:02:02]} 19. Nxc6 {[%clk 0:02:30]}  Qxd1 {[%clk 0:02:02]} 20. Raxd1 {[%clk 0:02:30]}  Bxb2 {[%clk 0:02:01]} 21. bxc4 {[%clk 0:02:30]}  Rfc8 {[%clk 0:01:59]} 22. Ne7+ {[%clk 0:02:30]}  Kf8 {[%clk 0:01:59]} 23. Nxc8 {[%clk 0:02:31]}  Rxc8 {[%clk 0:01:58]} 24. Rd2 {[%clk 0:02:29]}  Bc3 {[%clk 0:01:56]} 25. Rc2 {[%clk 0:02:29]}  Bd4 {[%clk 0:01:56]} 26. Rd1 {[%clk 0:02:28]}  Bc5 {[%clk 0:01:56]} 27. Rd7 {[%clk 0:02:27]}  a5 {[%clk 0:01:56]} 28. a4 {[%clk 0:02:27]}  Re8 {[%clk 0:01:55]} 29. Kf3 {[%clk 0:02:23]}  Re6 {[%clk 0:01:54]} 30. h4 {[%clk 0:02:21]}  g6 {[%clk 0:01:51]} 31. Re2 {[%clk 0:02:18]}  Rf6+ {[%clk 0:01:51]} 32. Kg2 {[%clk 0:02:18]}  h5 {[%clk 0:01:46]} 33. f4 {[%clk 0:02:17]}  Rc6 {[%clk 0:01:45]} 34. Kf3 {[%clk 0:02:17]}  Kg7 {[%clk 0:01:44]} 35. Ke4 {[%clk 0:02:15]}  Bf8 {[%clk 0:01:43]} 36. Kd3 {[%clk 0:02:14]}  Rc5 {[%clk 0:01:42]} 37. Re5 {[%clk 0:02:09]}  Rc6 {[%clk 0:01:40]} 38. Kd4 {[%clk 0:02:03]}  Kg8 {[%clk 0:01:39]} 39. Re8 {[%clk 0:02:02]}  Kg7 {[%clk 0:01:37]} 40. Rdd8 {[%clk 0:02:00]}  Bb4 {[%clk 0:01:35]} 41. Rd7 {[%clk 0:01:51]}  Kf6 {[%clk 0:01:29]} 42. Rb8 {[%clk 0:01:44]}  Kf5 {[%clk 0:01:15]} 43. Rxf7+ {[%clk 0:01:43]}  Kg4 {[%clk 0:01:15]} 44. f5 {[%clk 0:01:41]}  gxf5 {[%clk 0:01:11]} 45. Rg8+ {[%clk 0:01:41]}  Kh3 {[%clk 0:01:09]} 46. Rxf5 {[%clk 0:01:39]}  Bd6 {[%clk 0:01:05]} 47. Rxh5 {[%clk 0:01:31]}  Bxg3 {[%clk 0:01:04]} 48. Rhg5 {[%clk 0:01:22]}  Bf2+ {[%clk 0:01:04]} 49. Kd3 {[%clk 0:01:20]}  Bxh4 {[%clk 0:00:54]} 50. Rg1 {[%clk 0:01:20]}  Kh2 {[%clk 0:00:53]} 51. R8g2+ {[%clk 0:01:19]}  Kh3 {[%clk 0:00:52]} 52. Re2 {[%clk 0:01:18]}  Rd6+ {[%clk 0:00:45]} 53. Kc3 {[%clk 0:01:10]}  Bf6+ {[%clk 0:00:44]} 54. Kc2 {[%clk 0:01:10]}  Rd4 {[%clk 0:00:40]} 55. Re3+ {[%clk 0:01:08]}  Kh4 {[%clk 0:00:39]} 56. Kb3 {[%clk 0:01:06]}  Rf4 {[%clk 0:00:34]} 57. Rd3 {[%clk 0:01:03]}  Bd4 {[%clk 0:00:32]} 58. Rg8 {[%clk 0:00:58]}  Re4 {[%clk 0:00:26]} 59. Rd8 {[%clk 0:00:55]}  Bc5 {[%clk 0:00:25]} 60. R8d5 {[%clk 0:00:55]}  Kg4 {[%clk 0:00:24]} 61. Kc3 {[%clk 0:00:52]}  Re1 {[%clk 0:00:22]} 62. Rd1 {[%clk 0:00:50]}  Re2 {[%clk 0:00:18]} 63. Rb1 {[%clk 0:00:46]}  Ra2 {[%clk 0:00:17]} 64. Rd7 {[%clk 0:00:36]}  Ra3+ {[%clk 0:00:16]} 65. Rb3 {[%clk 0:00:35]}  Rxa4 {[%clk 0:00:13]} 66. Rg7+ {[%clk 0:00:35]}  Kf5 {[%clk 0:00:13]} 67. Rb1 {[%clk 0:00:33]}  Ra3+ {[%clk 0:00:11]} 68. Kc2 {[%clk 0:00:33]}  Bd4 {[%clk 0:00:10]} 69. Rf1+ {[%clk 0:00:32]}  Ke6 {[%clk 0:00:10]} 70. Rg6+ {[%clk 0:00:32]}  Ke7 {[%clk 0:00:10]} 71. Rh1 {[%clk 0:00:29]}  Rc3+ {[%clk 0:00:09]} 72. Kd2 {[%clk 0:00:28]}  Rxc4 {[%clk 0:00:09]} 73. Kd3 {[%clk 0:00:25]}  Rb4 {[%clk 0:00:08]} 74. Rh7+ {[%clk 0:00:24]}  Kf8 {[%clk 0:00:09]} 75. Rc6 {[%clk 0:00:24]}  Kg8 {[%clk 0:00:06]} 76. Rd7 {[%clk 0:00:23]}  Bg7 {[%clk 0:00:05]} 77. Rg6 {[%clk 0:00:19]}  Rb3+ {[%clk 0:00:02]} 78. Kc4 {[%clk 0:00:18]}  Rb4+ {[%clk 0:00:01]} 79. Kd3 {[%clk 0:00:16]} 1-0

[Event "January 9 Early 2024"]
[Site "https://www.chess.com"]
[Date "2024.01.11"]
[Round "7"]
[White "Bogaudinov, Rushan"]
[Black "Cori T., Deysi"]
[Result "1/2-1/2"]
[Board "256"]
[TimeControl "180+1"]
[WhiteFideId "4129288"]
[BlackFideId "3801934"]
[WhiteElo "2386"]
[BlackElo "2558"]
[WhiteTeam "RUS"]
[BlackTeam "PER"]
[WhiteClock "0:00:11"]
[BlackClock "0:00:08"]

1. d4 {[%clk 0:01:55]}  Nf6 {[%clk 0:02:57]} 2. c3 {[%clk 0:01:55]}  g6 {[%clk 0:02:55]} 3. g3 {[%clk 0:01:56]}  Bg7 {[%clk 0:02:56]} 4. Bg2 {[%clk 0:01:56]}  O-O {[%clk 0:02:56]} 5. e4 {[%clk 0:01:57]}  d6 {[%clk 0:02:56]} 6. Nd2 {[%clk 0:01:56]}  e5 {[%clk 0:02:56]} 7. Ne2 {[%clk 0:01:55]}  c5 {[%clk 0:02:53]} 8. O-O {[%clk 0:01:55]}  cxd4 {[%clk 0:02:53]} 9. cxd4 {[%clk 0:01:56]}  Nc6 {[%clk 0:02:54]} 10. d5 {[%clk 0:01:56]}  Ne7 {[%clk 0:02:53]} 11. Nc4 {[%clk 0:01:56]}  Bg4 {[%clk 0:02:52]} 12. f3 {[%clk 0:01:56]}  b5 {[%clk 0:02:49]} 13. Nxd6 {[%clk 0:01:48]}  Qxd6 {[%clk 0:02:47]} 14. fxg4 {[%clk 0:01:48]}  Qb6+ {[%clk 0:02:45]} 15. Kh1 {[%clk 0:01:47]}  Nxg4 {[%clk 0:02:46]} 16. Qd3 {[%clk 0:01:32]}  Nf2+ {[%clk 0:02:35]} 17. Rxf2 {[%clk 0:01:32]}  Qxf2 {[%clk 0:02:35]} 18. Be3 {[%clk 0:01:32]}  Qf6 {[%clk 0:02:35]} 19. Bc5 {[%clk 0:01:27]}  Rfe8 {[%clk 0:02:15]} 20. Rf1 {[%clk 0:01:21]}  Qa6 {[%clk 0:02:10]} 21. Nc3 {[%clk 0:01:06]}  Qc8 {[%clk 0:02:02]} 22. b4 {[%clk 0:01:05]}  a6 {[%clk 0:01:57]} 23. d6 {[%clk 0:00:56]}  Qd7 {[%clk 0:01:55]} 24. Qf3 {[%clk 0:00:47]}  Nc8 {[%clk 0:01:44]} 25. Nd5 {[%clk 0:00:45]}  Nxd6 {[%clk 0:01:44]} 26. Nb6 {[%clk 0:00:43]}  Qc6 {[%clk 0:01:15]} 27. Nxa8 {[%clk 0:00:42]}  Rxa8 {[%clk 0:01:15]} 28. Bxd6 {[%clk 0:00:34]}  Qxd6 {[%clk 0:01:16]} 29. Qxf7+ {[%clk 0:00:34]}  Kh8 {[%clk 0:01:17]} 30. Qd5 {[%clk 0:00:28]}  Rd8 {[%clk 0:01:08]} 31. Rd1 {[%clk 0:00:26]}  Qxd5 {[%clk 0:00:59]} 32. exd5 {[%clk 0:00:26]}  Bf8 {[%clk 0:00:58]} 33. a3 {[%clk 0:00:26]}  Kg7 {[%clk 0:00:32]} 34. Rc1 {[%clk 0:00:20]}  h5 {[%clk 0:00:27]} 35. h4 {[%clk 0:00:20]}  Be7 {[%clk 0:00:22]} 36. Be4 {[%clk 0:00:19]}  g5 {[%clk 0:00:20]} 37. hxg5 {[%clk 0:00:17]}  Bxg5 {[%clk 0:00:15]} 38. Rc7+ {[%clk 0:00:17]}  Kf8 {[%clk 0:00:13]} 39. Rc6 {[%clk 0:00:16]}  Be7 {[%clk 0:00:07]} 40. Rxa6 {[%clk 0:00:15]}  Rd6 {[%clk 0:00:08]} 41. Ra7 {[%clk 0:00:13]}  h4 {[%clk 0:00:07]} 42. g4 {[%clk 0:00:12]}  h3 {[%clk 0:00:06]} 43. Kh2 {[%clk 0:00:12]}  Rf6 {[%clk 0:00:06]} 44. Bf5 {[%clk 0:00:12]}  Rd6 {[%clk 0:00:05]} 45. Be6 {[%clk 0:00:11]}  e4 {[%clk 0:00:05]} 46. Kxh3 {[%clk 0:00:10]}  e3 {[%clk 0:00:05]} 47. Kg2 {[%clk 0:00:10]}  Rd8 {[%clk 0:00:02]} 48. Kf3 {[%clk 0:00:10]}  Bg5 {[%clk 0:00:02]} 49. Rf7+ {[%clk 0:00:09]}  Ke8 {[%clk 0:00:03]} 50. Rf5 {[%clk 0:00:09]}  Be7 {[%clk 0:00:02]} 51. Kxe3 {[%clk 0:00:08]}  Ra8 {[%clk 0:00:02]} 52. Ke4 {[%clk 0:00:01]}  Rxa3 {[%clk 0:00:02]} 53. Rf3 {[%clk 0:00:02]}  Rxf3 {[%clk 0:00:01]} 54. Kxf3 {[%clk 0:00:02]}  Bxb4 {[%clk 0:00:02]} 55. g5 {[%clk 0:00:02]}  Kf8 {[%clk 0:00:02]} 56. Ke4 {[%clk 0:00:02]}  Bd6 {[%clk 0:00:02]} 57. Kf5 {[%clk 0:00:02]}  Kg7 {[%clk 0:00:02]} 58. Bd7 {[%clk 0:00:01]}  b4 {[%clk 0:00:03]} 59. Ba4 {[%clk 0:00:02]}  Kf7 {[%clk 0:00:02]} 60. Bb3 {[%clk 0:00:03]}  Be7 {[%clk 0:00:02]} 61. Bc4 {[%clk 0:00:04]}  Kg7 {[%clk 0:00:02]} 62. Ke6 {[%clk 0:00:04]}  Bxg5 {[%clk 0:00:01]} 63. d6 {[%clk 0:00:05]}  Bd8 {[%clk 0:00:01]} 64. Kd5 {[%clk 0:00:06]}  Kf6 {[%clk 0:00:01]} 65. Kc6 {[%clk 0:00:07]}  Ke5 {[%clk 0:00:01]} 66. Kd7 {[%clk 0:00:07]}  Bf6 {[%clk 0:00:01]} 67. Kc6 {[%clk 0:00:08]}  Bh4 {[%clk 0:00:01]} 68. Bb3 {[%clk 0:00:08]}  Bg5 {[%clk 0:00:01]} 69. d7 {[%clk 0:00:09]}  Bh4 {[%clk 0:00:02]} 70. Kb5 {[%clk 0:00:09]}  Be7 {[%clk 0:00:02]} 71. Kc6 {[%clk 0:00:08]}  Bd8 {[%clk 0:00:01]} 72. Kb7 {[%clk 0:00:08]}  Kd6 {[%clk 0:00:02]} 73. Kc8 {[%clk 0:00:09]}  Be7 {[%clk 0:00:02]} 74. d8=Q+ {[%clk 0:00:10]}  Bxd8 {[%clk 0:00:02]} 75. Kxd8 {[%clk 0:00:10]}  Kc5 {[%clk 0:00:03]} 76. Be6 {[%clk 0:00:10]}  Kd4 {[%clk 0:00:04]} 77. Bf7 {[%clk 0:00:10]}  Kc3 {[%clk 0:00:05]} 78. Bg8 {[%clk 0:00:11]}  Kc2 {[%clk 0:00:05]} 79. Kd7 {[%clk 0:00:11]}  Kc3 {[%clk 0:00:06]} 80. Kc6 {[%clk 0:00:11]}  Kd4 {[%clk 0:00:07]} 81. Kb5 {[%clk 0:00:11]}  Kc3 {[%clk 0:00:07]} 82. Bf7 {[%clk 0:00:11]}  b3 {[%clk 0:00:08]} 83. Bxb3 {[%clk 0:00:11]} 1/2-1/2

[Event "January 9 Early 2024"]
[Site "https://www.chess.com"]
[Date "2024.01.11"]
[Round "7"]
[White "Pandey Srishti"]
[Black "Essing, Arnold"]
[Result "1/2-1/2"]
[Board "257"]
[TimeControl "180+1"]
[WhiteFideId "35093290"]
[BlackFideId "4619862"]
[WhiteElo "2452"]
[BlackElo "2268"]
[WhiteTeam "IND"]
[BlackTeam "GER"]
[WhiteClock "0:00:35"]
[BlackClock "0:00:02"]

1. e4 {[%clk 0:03:00]}  Nf6 {[%clk 0:02:59]} 2. e5 {[%clk 0:03:00]}  Nd5 {[%clk 0:02:59]} 3. c4 {[%clk 0:02:59]}  Nb6 {[%clk 0:02:59]} 4. d4 {[%clk 0:02:59]}  d6 {[%clk 0:03:00]} 5. f4 {[%clk 0:02:58]}  dxe5 {[%clk 0:02:59]} 6. fxe5 {[%clk 0:02:58]}  c5 {[%clk 0:03:00]} 7. d5 {[%clk 0:02:57]}  e6 {[%clk 0:02:59]} 8. Nc3 {[%clk 0:02:55]}  exd5 {[%clk 0:03:00]} 9. cxd5 {[%clk 0:02:54]}  Qh4+ {[%clk 0:03:00]} 10. g3 {[%clk 0:02:53]}  Qd4 {[%clk 0:03:00]} 11. Nf3 {[%clk 0:02:42]}  Qxd1+ {[%clk 0:02:58]} 12. Kxd1 {[%clk 0:02:43]}  Bg4 {[%clk 0:02:57]} 13. Be2 {[%clk 0:02:43]}  Na6 {[%clk 0:02:56]} 14. h3 {[%clk 0:02:38]}  Bxf3 {[%clk 0:02:46]} 15. Bxf3 {[%clk 0:02:39]}  Nb4 {[%clk 0:02:42]} 16. a3 {[%clk 0:02:25]}  N4xd5 {[%clk 0:02:42]} 17. Nxd5 {[%clk 0:02:23]}  Nxd5 {[%clk 0:02:42]} 18. Kc2 {[%clk 0:02:21]}  O-O-O {[%clk 0:02:35]} 19. Rd1 {[%clk 0:02:17]}  Nb6 {[%clk 0:02:10]} 20. Bxb7+ {[%clk 0:02:13]}  Kc7 {[%clk 0:02:11]} 21. Rxd8 {[%clk 0:02:12]}  Kxd8 {[%clk 0:02:11]} 22. Be3 {[%clk 0:02:07]}  Nc4 {[%clk 0:02:01]} 23. Bf4 {[%clk 0:02:01]}  Nb6 {[%clk 0:01:29]} 24. Rd1+ {[%clk 0:01:57]}  Kc7 {[%clk 0:01:28]} 25. Ba6 {[%clk 0:01:52]}  Be7 {[%clk 0:01:28]} 26. e6+ {[%clk 0:01:50]}  Kc6 {[%clk 0:01:24]} 27. exf7 {[%clk 0:01:49]}  Rf8 {[%clk 0:01:24]} 28. Bd3 {[%clk 0:01:37]}  Rxf7 {[%clk 0:01:20]} 29. Bxh7 {[%clk 0:01:36]}  g5 {[%clk 0:01:17]} 30. Be4+ {[%clk 0:01:35]}  Kb5 {[%clk 0:01:15]} 31. Be3 {[%clk 0:01:35]}  Bf6 {[%clk 0:00:45]} 32. b3 {[%clk 0:01:33]}  Bd4 {[%clk 0:00:33]} 33. a4+ {[%clk 0:01:31]}  Ka6 {[%clk 0:00:26]} 34. Bxd4 {[%clk 0:01:30]}  cxd4 {[%clk 0:00:26]} 35. Rxd4 {[%clk 0:01:31]}  Rf2+ {[%clk 0:00:24]} 36. Kc3 {[%clk 0:01:29]}  Rh2 {[%clk 0:00:23]} 37. h4 {[%clk 0:01:28]}  gxh4 {[%clk 0:00:22]} 38. gxh4 {[%clk 0:01:28]}  Rh3+ {[%clk 0:00:19]} 39. Bd3+ {[%clk 0:01:27]}  Kb7 {[%clk 0:00:19]} 40. a5 {[%clk 0:01:25]}  Nc8 {[%clk 0:00:18]} 41. Rd7+ {[%clk 0:01:22]}  Kc6 {[%clk 0:00:16]} 42. Rh7 {[%clk 0:01:22]}  Nd6 {[%clk 0:00:15]} 43. Kd4 {[%clk 0:01:20]}  a6 {[%clk 0:00:12]} 44. b4 {[%clk 0:01:18]}  Nb5+ {[%clk 0:00:10]} 45. Bxb5+ {[%clk 0:01:15]}  Kxb5 {[%clk 0:00:11]} 46. Rb7+ {[%clk 0:01:11]}  Ka4 {[%clk 0:00:10]} 47. Kc5 {[%clk 0:00:54]}  Rxh4 {[%clk 0:00:07]} 48. Rb6 {[%clk 0:00:50]}  Rh5+ {[%clk 0:00:04]} 49. Kd4 {[%clk 0:00:50]}  Rh4+ {[%clk 0:00:03]} 50. Kc3 {[%clk 0:00:50]}  Rh3+ {[%clk 0:00:03]} 51. Kd2 {[%clk 0:00:50]}  Rb3 {[%clk 0:00:02]} 52. Rxa6 {[%clk 0:00:47]}  Rxb4 {[%clk 0:00:02]} 53. Ra8 {[%clk 0:00:47]}  Rb5 {[%clk 0:00:02]} 54. a6 {[%clk 0:00:47]}  Ka5 {[%clk 0:00:01]} 55. a7 {[%clk 0:00:46]}  Rb7 {[%clk 0:00:01]} 56. Kc3 {[%clk 0:00:44]}  Ka6 {[%clk 0:00:02]} 57. Kc4 {[%clk 0:00:43]}  Rxa7 {[%clk 0:00:03]} 58. Rg8 {[%clk 0:00:42]}  Rb7 {[%clk 0:00:02]} 59. Kc5 {[%clk 0:00:43]}  Rb5+ {[%clk 0:00:02]} 60. Kc6 {[%clk 0:00:41]}  Rb6+ {[%clk 0:00:02]} 61. Kd5 {[%clk 0:00:42]}  Rb5+ {[%clk 0:00:02]} 62. Kc4 {[%clk 0:00:41]}  Rb6 {[%clk 0:00:02]} 63. Rg7 {[%clk 0:00:41]}  Rb7 {[%clk 0:00:02]} 64. Rg1 {[%clk 0:00:40]}  Rb6 {[%clk 0:00:02]} 65. Ra1+ {[%clk 0:00:37]}  Kb7 {[%clk 0:00:02]} 66. Kc5 {[%clk 0:00:38]}  Rc6+ {[%clk 0:00:03]} 67. Kd5 {[%clk 0:00:38]}  Rb6 {[%clk 0:00:03]} 68. Ra2 {[%clk 0:00:37]}  Rb5+ {[%clk 0:00:03]} 69. Kd6 {[%clk 0:00:37]}  Rb6+ {[%clk 0:00:04]} 70. Kd7 {[%clk 0:00:37]}  Rb5 {[%clk 0:00:04]} 71. Rc2 {[%clk 0:00:36]}  Rd5+ {[%clk 0:00:04]} 72. Ke6 {[%clk 0:00:36]}  Rd1 {[%clk 0:00:05]} 73. Rc3 {[%clk 0:00:35]}  Kb6 {[%clk 0:00:05]} 74. Rc8 {[%clk 0:00:34]}  Kb7 {[%clk 0:00:05]} 75. Rc2 {[%clk 0:00:34]}  Kb6 {[%clk 0:00:05]} 76. Rf2 {[%clk 0:00:33]}  Kb7 {[%clk 0:00:05]} 77. Rb2+ {[%clk 0:00:33]}  Kc6 {[%clk 0:00:05]} 78. Rc2+ {[%clk 0:00:33]}  Kb5 {[%clk 0:00:05]} 79. Re2 {[%clk 0:00:33]}  Kc4 {[%clk 0:00:05]} 80. Kf5 {[%clk 0:00:34]}  Kb5 {[%clk 0:00:03]} 81. Re6 {[%clk 0:00:34]}  Kc5 {[%clk 0:00:03]} 82. Kf6 {[%clk 0:00:34]}  Rd6 {[%clk 0:00:02]} 83. Ke7 {[%clk 0:00:34]}  Rxe6+ {[%clk 0:00:02]} 84. Kxe6 {[%clk 0:00:35]} 1/2-1/2